Cogmind - Beta 14 @@@ ROGUE MODE // 2025.03.22 @ 15:40:22 Player: Leha44581 Result: Destroyed by Z2-HDU(M) with Barrage Gun Performance ------------- Evolutions (1) 500 Regions Visited (4) 800 Robots Destroyed (28) 140 Value Destroyed (684) 684 Prototype IDs (2) 40 Alien Tech Used (0) 0 Bonus (565) 565 TOTAL SCORE: 2729 Bonus ------- Met Imprinter 300 Was Imprinted 300 Friendly Fire -35 Cogmind --------- Core Integrity 0/400 Matter 300/300 Energy 100/100 System Corruption 3% Temperature Warm (159) Movement Treading (160) Location -7/Zion Parts ------- > --- POWER (1) -------- (None) > --- PROPULSION (2) --- Improved Treads > --- UTILITY (3) ------ Improved Targeting Computer Authchip [Propulsion] > --- WEAPON (3) ------- CR-A16's Pointy Stick > --- INVENTORY (5) ---- Improved Terrain Scan Processor Peak State ------------ > --- POWER ------------ Ion Engine > --- PROPULSION ------- Wheel Wheel > --- UTILITY ---------- High-capacity Matter Pod Improved Targeting Computer Hardened Light Armor Plating > --- WEAPON ----------- Heavy Riot Gun Heavy Battle Rifle Missile Launcher > --- INVENTORY -------- Improved Treads Improved Terrain Scan Processor Core Analyzer Authchip [Propulsion] Improved Grenade Launcher [Rating: 20] Favorites ----------- Power Ion Engine Engine Ion Engine Propulsion Wheel Treads Improved Treads Wheel Wheel Utility Improved Targeting Computer Device Heat Sink Storage High-capacity Matter Pod Processor Improved Targeting Computer Hackware Authchip [Propulsion] Protection Hardened Light Armor Plating Weapon Light Assault Rifle Energy Gun Heavy Riot Gun Ballistic Gun Light Assault Rifle Ballistic Cannon Improved Light Cannon Launcher Mini Grenade Launcher Piercing Weapon CR-A16's Pointy Stick Build | -11 -10 -9 -9 -7 ------- Run | Yrd Mat Mat Min Zio Slots Evolved 2 | . . 2 . . Power . | . . . . . Propulsion . | . . . . . Utility 1 | . . 1 . . Weapon 1 | . . 1 . . Parts Attached 35 | 5 8 10 4 8 Power 4 | 1 1 2 . . Engine 4 | 1 1 2 . . Core . | . . . . . Reactor . | . . . . . Propulsion 8 | 2 3 1 1 1 Treads 1 | . . . . 1 Leg . | . . . . . Wheel 7 | 2 3 1 1 . Hover . | . . . . . Flight . | . . . . . Utility 8 | 1 1 3 2 1 Device 1 | 1 . . . . Storage 1 | . . 1 . . Processor 1 | . . 1 . . Hackware 1 | . . . . 1 Protection 4 | . 1 1 2 . Artifact . | . . . . . Weapon 15 | 1 3 4 1 6 Energy Gun 3 | . . 1 . 2 Energy Cannon . | . . . . . Ballistic Gun 5 | 1 1 1 1 1 Ballistic Cannon 2 | . 1 1 . . Launcher 4 | . 1 1 . 2 Special Weapon . | . . . . . Impact Weapon . | . . . . . Slashing Weapon . | . . . . . Piercing Weapon 1 | . . . . 1 Special Melee Weapon . | . . . . . Unidentified Prototypes 1 | . . 1 . . Parts Lost 16 | . 2 3 2 9 Power 2 | . 1 . . 1 Propulsion 4 | . 1 . 1 2 Utility 4 | . . 2 . 2 Weapon 6 | . . 1 1 4 Highest Loss Streak 9 | . 2 2 2 9 To Critical Strikes . | . . . . . Average Slot Usage (%) 95 | . 89 94 97 97 Engine 11 | . 13 11 11 10 Wheel 22 | . 24 22 21 21 Device 2 | . 14 3 . . Storage 8 | . . 7 11 10 Processor 9 | . . 10 11 11 Protection 9 | . 8 8 11 10 Energy Gun 4 | . . 10 2 4 Ballistic Gun 8 | . 9 3 6 10 Ballistic Cannon 7 | . 3 11 11 6 Launcher 10 | . 13 6 11 10 Peak Build Rating 20 | 5 7 14 14 20 Average Rating 13 | 3 6 11 12 16 On Entrance 8 | . 5 7 14 14 Naked Turns . | . . . . . Heaviest Build 28 | 5 11 20 20 28 Greatest Support 23 | 20 20 20 20 23 Greatest Overweight (x) 2 | . 2 . 1 1 Average Overweight (x) . | . . . . . Largest Inventory Capacity 5 | 5 5 5 5 5 Average Capacity 5 | 5 5 5 5 5 Most Carried 5 | . 4 5 5 5 Average Carried 4 | . 1 4 4 4 Final Capacity 5 | 5 5 5 5 5 Final Carried 5 | . 3 5 5 1 Class Distribution -------------------- 51% | Gunner 23% | Mutant 23% | Derelict-Gunner Dominant Class ---------------- Mutant | -10/Materials Gunner | -9/Materials Gunner | -9/Mines Gunner | -7/Zion Resources | -11 -10 -9 -9 -7 ----------- Run | Yrd Mat Mat Min Zio Matter Collected 946 | 258 93 377 148 70 Remotely . | . . . . . Salvage Created 693 | 34 36 460 29 134 Parts 55 | 2 7 35 . 11 Haulers Intercepted . | . . . . . Recyclers Shooed 1 | . . 1 . . Parts Field Recycled . | . . . . . Retrieved Matter . | . . . . . Parts Self-Destructed . | . . . . . Prevented . | . . . . . Kills | -11 -10 -9 -9 -7 ------- Run | Yrd Mat Mat Min Zio Combat Hostiles Destroyed 22 | 1 3 10 4 4 Melee 1 | . . . . 1 Guns 7 | 1 3 3 . . Cannons 5 | . . 3 2 . AOE 9 | . . 4 2 3 Classes Destroyed 10 | 1 1 5 1 2 Builder 1 | . . 1 . . Tunneler 1 | . . 1 . . Recycler 2 | . . 2 . . Watcher 1 | . . 1 . . Swarmer 6 | . 3 3 . . Grunt 6 | 1 . 5 . . Sentry 2 | . . 2 . . Zionite 5 | . . . . 5 Assembled 4 | . . . 4 . Mutant 4 | . . . . 4 Best Kill Streak 9 | 1 2 7 8 9 Combat Bots Only 4 | 1 2 3 4 4 Max Kills in Single Turn 3 | 1 1 3 1 2 Gunslinging . | . . . . . Exploded 2 | . . 2 1 2 Melee 1 | . . . . 1 Uniques/NPCs Destroyed . | . . . . . Combat | -11 -10 -9 -9 -7 -------- Run | Yrd Mat Mat Min Zio Hostile Shots Fired 191 | 8 39 31 12 101 Missed 48 | 2 11 9 5 21 Damage Taken 1870 | 65 253 319 136 1097 Core 470 | 10 48 18 10 384 Absorbed by Shields . | . . . . . Redirected to Shielding 50 | . 23 27 . . Core Remaining (%) 86 | 96 76 . . . Volleys Fired 68 | 8 23 22 7 8 Largest 3 | 1 2 3 3 3 Hottest 129 | 20 50 114 114 129 Shots Fired 122 | 8 24 51 17 22 Gun 75 | 8 23 25 5 14 Cannon 30 | . . 22 7 1 Launcher 17 | . 1 4 5 7 Special . | . . . . . Kinetic 73 | 8 23 25 8 9 Thermal . | . . . . . Explosive 17 | . 1 4 5 7 Electromagnetic 32 | . . 22 4 6 Robot Hit Streak 13 | 3 5 13 3 4 Robot Miss Streak 5 | 2 4 3 5 3 Penetration Max . | . . . . . Secondary Targets . | . . . . . Shots Hit Robots 75 | 5 13 39 8 10 Core Hits 57 | 2 3 22 7 23 Critical Kills . | . . . . . Critical Parts Destroyed 1 | . 1 . . . Critical Strikes 2 | . 1 1 . . Destroy 1 | . 1 . . . Blast 1 | . . 1 . . Melee Attacks . | . . . . . Impact . | . . . . . Slashing . | . . . . . Piercing . | . . . . . Sneak Attacks . | . . . . . Combat Hostiles . | . . . . . Follow-up Attacks . | . . . . . Damage Inflicted 2522 | 41 111 928 313 1129 Guns 636 | 41 111 339 10 135 Cannons 342 | . . 235 107 . Explosions 1537 | . . 354 196 987 Melee . | . . . . . Ramming 7 | . . . . 7 Kinetic 605 | 41 111 260 107 86 Thermal 151 | . . 151 . . Explosive 1386 | . . 203 196 987 Electromagnetic 373 | . . 314 10 49 Impact . | . . . . . Slashing . | . . . . . Piercing . | . . . . . Highest Corruption 3 | . . . . 3 Average Corruption 2 | . . . . 2 Corruption Purged . | . . . . . Corruption Blocked . | . . . . . Overload Shots . | . . . . . Overflow Damage 97 | . . 73 14 10 Projectiles . | . . . . . Explosions 97 | . . 73 14 10 Melee . | . . . . . Knockbacks 2 | . . . 2 . Impact . | . . . . . Kinetic 2 | . . . 2 . Secondary . | . . . . . Self-Inflicted Damage 153 | . . 104 21 28 Shots 5 | . . 2 1 2 Rammed 11 | . . . . 11 Targets Rammed 11 | . . . . 11 Kicked . | . . . . . Crushed . | . . . . . Highest Temperature 586 | 6 . 111 72 586 Average Temperature 146 | 6 . 36 34 332 Received Heat Transfer 786 | 36 30 48 . 672 Effects 9 | . . . . 9 Interference 1 | . . . . 1 Matter Decay 1 | . . . . 1 Short Circuit 1 | . . . . 1 Damage (minor) 2 | . . . . 2 Damage (major) 4 | . . . . 4 Siege Activations . | . . . . . Robots Corrupted . | . . . . . Combat Hostiles . | . . . . . Parts Fried 1 | . . 1 . . Impact Corruptions . | . . . . . Robots Melted . | . . . . . Combat Hostiles . | . . . . . Parts Melted . | . . . . . Heat Transferred 150 | . . 150 . . Parts Sabotaged . | . . . . . Parts Stolen . | . . . . . Parts Stripped . | . . . . . Power Chain Reactions 2 | . . 2 . . Alert | -11 -10 -9 -9 -7 ------- Run | Yrd Mat Mat Min Zio Peak Influence 325 | 20 110 325 120 . Initial 93 | . 13 46 93 . Average 136 | 3 65 218 111 . Maximum Alert Level 1 | . . 1 . . Low Security (%) 67 | 100 100 26 100 . Level 1 32 | . . 73 . . Level 2 . | . . . . . Level 3 . | . . . . . Level 4 . | . . . . . Level 5 . | . . . . . High Security . | . . . . . Max Security . | . . . . . Squads Dispatched 2 | . 1 1 . . Investigation 1 | . . 1 . . Extermination . | . . . . . Reinforcement 1 | . 1 . . . Assault . | . . . . . Garrison . | . . . . . Intercept . | . . . . . Searches Triggered . | . . . . . Construction Impeded . | . . . . . Haulers Reinforced . | . . . . . Active Scanning Responses . | . . . . . Cargo Convoy Interrupts . | . . . . . Stealth | -11 -10 -9 -9 -7 --------- Run | Yrd Mat Mat Min Zio Distress Signals . | . . . . . Communications Jammed . | . . . . . Distress Signals . | . . . . . Times Spotted 40 | 1 8 14 8 9 Peak Tracking Total 19 | 1 4 4 19 9 Tactical Retreats 2 | . . 1 1 . Traps | -11 -10 -9 -9 -7 ------- Run | Yrd Mat Mat Min Zio Traps Triggered 1 | . 1 . . . Indirectly . | . . . . . Trap Hack Attempts . | . . . . . Triggered . | . . . . . Disarmed 1 | . 1 . . . Reprogrammed . | . . . . . Reused . | . . . . . Traps Extracted . | . . . . . Installed . | . . . . . Triggered . | . . . . . Machines | -11 -10 -9 -9 -7 ---------- Run | Yrd Mat Mat Min Zio Machines Disabled 2 | . . 1 . 1 Max in Single Turn 1 | . . 1 . 1 Machines Repaired . | . . . . . Machines Dismantled . | . . . . . Machines Sabotaged . | . . . . . Overloaded Fab Kills . | . . . . . Hacking | -11 -10 -9 -9 -7 --------- Run | Yrd Mat Mat Min Zio Machines Accessed 10 | . 6 4 . . Terminals 9 | . 6 3 . . Fabricators . | . . . . . Repair Stations . | . . . . . Recycling Units 1 | . . 1 . . Scanalyzers . | . . . . . Garrison Access . | . . . . . Total Hacks 18 | . 9 9 . . Successful 13 | . 6 7 . . Failed 5 | . 3 2 . . Catastrophic . | . . . . . Database Lockouts . | . . . . . Manual 5 | . . . . 5 Terminals 14 | . 9 5 . . Fabricators . | . . . . . Repair Stations . | . . . . . Recycling Units 4 | . . 4 . . Scanalyzers . | . . . . . Garrison Access . | . . . . . Terminal Hacks 10 | . 6 4 . . Record 4 | . 2 2 . . Alert Level 1 | . . 1 . . Locate Traps 1 | . 1 . . . Disarm Traps 1 | . 1 . . . Zone Layout 3 | . 2 1 . . Fabricator Hacks . | . . . . . Repair Station Hacks . | . . . . . Recycling Unit Hacks 3 | . . 3 . . Process 1 | . . 1 . . Report Inventory 2 | . . 2 . . Scanalyzer . | . . . . . Garrison Access Hacks . | . . . . . Unauthorized Hacks . | . . . . . Terminals . | . . . . . Fabricators . | . . . . . Repair Stations . | . . . . . Recycling Units . | . . . . . Scanalyzers . | . . . . . Garrison Access . | . . . . . Data Cores Recovered . | . . . . . Used . | . . . . . Hacking Detections 4 | . 2 2 . . Full Trace Events 2 | . . 2 . . Feedback Events . | . . . . . Feedback Blocked . | . . . . . Robot Schematics Acquired 3 | . . . . 3 Robots Built . | . . . . . Authchips . | . . . . . Time . | . . . . . Total Robot Build Rating . | . . . . . Part Schematics Acquired 14 | . . . . 14 Parts Built . | . . . . . Authchips . | . . . . . Time . | . . . . . Total Part Build Rating . | . . . . . Parts Repaired . | . . . . . Time . | . . . . . Parts Recycled . | . . . . . Recycled Matter 84 | . . 84 . . Retrieved Matter . | . . . . . Retrieved Components . | . . . . . Parts Scanalyzed . | . . . . . Part Schematics Acquired . | . . . . . Parts Damaged . | . . . . . Bothacking | -11 -10 -9 -9 -7 ------------ Run | Yrd Mat Mat Min Zio Used RIF Installer . | . . . . . Robots Hacked . | . . . . . Non-combat . | . . . . . Combat . | . . . . . Robot Hacks Applied . | . . . . . Relay Couplers Released . | . . . . . Fabnet Peak Effective % . | . . . . . Robots Rewired . | . . . . . Allies Hacked . | . . . . . Hacks Repelled . | . . . . . Allies | -11 -10 -9 -9 -7 -------- Run | Yrd Mat Mat Min Zio Total Allies 4 | . . . . 4 Largest Group 4 | . . . . 4 Highest-Rated Group 152 | . . . . 152 Highest-Rated Ally 41 | . . . . 41 Total Orders . | . . . . . Ally Attacks . | . . . . . Total Damage . | . . . . . Kills . | . . . . . Allies Corrupted . | . . . . . Allies Melted . | . . . . . Intel | -11 -10 -9 -9 -7 ------- Run | Yrd Mat Mat Min Zio Robot Analysis Total . | . . . . . Derelict Logs Recovered 2 | . . . 1 1 Drone Launches . | . . . . . Drone Recoveries . | . . . . . Exploration | -11 -10 -9 -9 -7 ------------- Run | Yrd Mat Mat Min Zio Turns Passed 2134 | 65 321 434 151 1163 Spaces Moved 1878 | 60 255 398 121 1044 Core 18 | 15 1 . . 2 Treads 2 | . . . . 2 Legs . | . . . . . Wheels 1858 | 45 254 398 121 1040 Hover . | . . . . . Flight . | . . . . . Fastest Speed 50 | 50 80 80 80 80 Average Speed 83 | 72 80 80 81 87 Slowest Speed 160 | 80 150 80 95 160 Overloaded Moves . | . . . . . Propulsion Burnouts . | . . . . . Robots Hopped . | . . . . . Cave-ins Triggered . | . . . . . Exploration Rate (%) 41 | 7 54 30 34 82 Regions Visited 4 Branch Regions 2 Pre-discovered Areas . | . . . . . Known Exits Taken . | . . . . . Unknown Exits Taken 4 | 1 1 1 1 . Scrap Searched 4 | . . . 1 3 Spaces Dug . | . . . . . Terrain Destroyed 102 | . 9 42 40 11 Melee . | . . . . . Projectile . | . . . . . AOE 102 | . 9 42 40 11 Terrain Rammed . | . . . . . Walls Destroyed . | . . . . . Machines Disabled . | . . . . . Actions | -11 -10 -9 -9 -7 --------- Run | Yrd Mat Mat Min Zio Total 2327 | 72 350 468 159 1278 Wait 285 | . 59 22 22 182 Move 1874 | 59 254 397 120 1044 Hop . | . . . . . Pick Up 24 | . 2 8 3 11 Fast Attach 24 | 5 6 8 2 3 Attach 11 | . 2 2 2 5 Detach 3 | . 3 . . . Swap . | . . . . . Drop 27 | . 1 9 3 14 Fire 68 | 8 23 22 7 8 Melee . | . . . . . Ram . | . . . . . Kick . | . . . . . Crush 11 | . . . . 11 Escape Stasis . | . . . . . Rewire . | . . . . . Trap . | . . . . . Miscellaneous . | . . . . . Route ------- -11/Scrapyard -10/Materials -9/Materials -9/Mines -7/Zion History --------- Turn | Location | Event 2 | -11/Scrapyard | Met Revision 17 37 | -11/Scrapyard | Discovered new exit (range 8) 66 | -11/Scrapyard | Entered Materials 315 | -10/Materials | Build established: Mutant 349 | -10/Materials | Discovered new exit (range 9) 387 | -10/Materials | Entered another Materials area 387 | -9/Materials | Evolved 2 slots: Utility x1, Weapon x1 813 | -9/Materials | Discovered new exit (range 6) 821 | -9/Materials | Entered Mines 827 | -9/Mines | Assembled infested the area 830 | -9/Mines | Build established: Gunner 832 | -9/Mines | Assisted by a Guerilla fighting off Assembled 954 | -9/Mines | Learned Materials garrison access intel 967 | -9/Mines | A Derelict revealed a hidden shortcut to a safe place 972 | -9/Mines | Entered Zion 1262 | -7/Zion | Met Imprinter 1279 | -7/Zion | Imprinted 1281 | -7/Zion | Declared Zion's savior 1398 | -7/Zion | Found Relay Coupler [Programmer] 1447 | -7/Zion | Received a visual enhancement algorithm 1474 | -7/Zion | Learned Factory security intel 1646 | -7/Zion | Found CR-A16's Pointy Stick 1894 | -7/Zion | Build established: Derelict-Gunner 2083 | -7/Zion | Attacked by Zionites 2103 | -7/Zion | Core integrity fell below 50% 2120 | -7/Zion | Core integrity fell below 20% 2135 | -7/Zion | Destroyed by Z2-HDU(M) with Barrage Gun Last Messages --------------- 02116_ Critical hit (Burn: +80). 02118_ Slammed into Z2-HDU(M). Ramming works as a last resort when unarmed or blocked, but can have serious negative consequences. 02119_ Slammed into YM-UL3(M). 02119_ YM-UL3(M) destroyed. [Achievement: Fist Fight] 02120_ Acquired 15 matter. 02121_ JX-B05(z) overheating. 02121_ Slammed into JX-B05(z). 02123_ JX-B05(z) destroyed. 02124_ The unstable cave ceiling collapses. 02124_ Slammed into Z2-HDU(M). 02125_ The unstable cave ceiling collapses. 02126_ Slammed into Z2-HDU(M). 02127_ Z2-HDU(M) misfires. 02127_ Slammed into Z2-HDU(M). 02132_ Critical hit (Burn: +80). 02132_ Slammed into Z2-HDU(M). Map ----- +----------------------------------------------------+ | ????????????????????????????????????????????? | | ????????????????????????????????????????????? | | ????????????????????????????????????????????? | | ??????????????????????????????????????????### | | ??????????????????????????????????????????#"" | | ??????????????????????????????#######????##" | | ??????????????????????????????#"""""#???##" | | ??????????????????????????????#" "#???#"#" | | ?????????????????????????????### ##???##""" | | ???????????????????????????###"" X#####"" | | ???????????????????????????#""#" #""#"" | | ???????????????????????????#"""" """" | | ???????????????????????????#""" """" | | ???????????????????????????##"" """ | | ???????????????????????????#"""" | | ??????????????????????########"" | | ??????????????????????#""""""""" | | ??????????????????????# "" "" | | ??????????????????????" " "" "" | | ??????????????????????# """" """" | | ?????????????????????## = = """" """" | | ?????????????????????" % = """ | | ?????????????????????" % """ """" | | ????????????????##?### %[ " """ | | ????????????????#""# M%% # " "" | | ??????????????????# @%% # *""""""" | | ??????????????????###%## "" % #"""" | | ????????????????????#####""" ="##""" | | ????????????????????????##""" "##""" | | ?????????????????????????##"""" ""###"" | | ??????????????????????????#"#"" """"###""" | | ??????????????????????????##"#" """""""#""" | | ???????????????????????????##"" """""""""" | | ????????????????????????????#"" | | ???????????????????????????###" | | ???????????????????????????#"""" """" | | ???????????????????????????#"" """"" | | ??????????????????????##???##" """""" | | ??????????????????????# #### "" """##"" | | ??????????????????????#""!!#""" """#""" | | ??????????????????????#"" """##" | | ??????????????????????#" "##??" | | ??????????????????????#"" !## "#???? | | ??????????????????????##"!!" "#"??? | | ???????????????????????####"" """""?? | | ????????????????????????###" """#" | | ????????????????????????#""" """" | | ????????????????????????#"" | | ???????????????????????#"""""" | | ????????????????#####??######"" """ | +----------------------------------------------------+ Best States ------------- Heat Dissipation 38 Energy Generation 10 Energy Capacity 250 Matter Stores 500 Matter Capacity 500 Sight Range 16 Terrain Scan Density 10 Armor Coverage 150 Weapon Shielding 33 Evasion (%) 50 Targeting Accuracy 6 Recoil Reduction 1 Authchip Count 1 Item Schematics ----------------- Lyr. Light Armor Plating | -7/Zion | Archive Adv. Shield Generator | -7/Zion | Archive Angular Momentum Engine | -7/Zion | Archive Xenon Bombardment Thruster | -7/Zion | Archive Hvy. Plasma Cannon | -7/Zion | Archive Imp. Medium Armor Plating | -7/Zion | Archive Fission Core | -7/Zion | Archive Spear | -7/Zion | Archive Thermal Shield | -7/Zion | Archive Matter Filter | -7/Zion | Archive Recoil Nullifier | -7/Zion | Archive Thermic Laser | -7/Zion | Archive Gravmag System | -7/Zion | Archive Tiamat Missile Launcher | -7/Zion | Archive Robot Schematics ------------------ P-60 Hacker | -7/Zion | Archive A-02 Transporter | -7/Zion | Archive R-06 Scavenger | -7/Zion | Archive Fabricated ------------ Nothing Alien Tech Used ----------------- None Achievements -------------- Crack Shot Fist Fight I Survived The Infestation Novice Programmer One Hack Too Far Robot Respite The One Challenges ------------ None Game ------ Seed MassCompanionAutohacker Manual? 0 Play Time 00:54:21 Cumulative 1.0 hours Start 2025.03.22 @ 14:42:13 End 2025.03.22 @ 15:40:22 Sessions 1 Manual Loads 0 Difficulty Rogue Special Mode None Game No. 2 Rogue 2 Adventurer 0 Explorer 0 Win Type - Total 0 Types 0/0/0/0/0/0/0/0/0 Lore% 2 Gallery% 3 Achievement% 4 Wizard Run 0 Options --------- Layout 1 ASCII 0 Keyboard 1 Movement Arrows Keybinds 0 Fullscreen 2 Font 20/SmallcapsGlow Map View 54x42 Zoom Use 0% Tactical HUD 1 Map Filters NONE Filters NONE Steam 1 RUN: 8c23f23d-ad49-41cb-8f97-722715bcaa6a